bitfinex/quotes_ETHUSD_20250425
["timestamp","ask_amount","ask_price","bid_price","bid_amount"]
[1745592772151,1.78520545,1800.8,1800.2,7.3054]
[1745592772459,2.09193257,1800.8,1800.2,7.3054]
[1745592772819,2.09193257,1800.8,1800.2,6.659]
[1745592773019,3.0,1800.6,1800.2,6.659]
[1745592773216,0.85534541,1800.6,1800.2,6.659]
[1745592773418,0.30672712,1800.7,1800.2,6.659]
[1745592774269,0.7589,1800.8,1800.2,6.659]
[1745592775521,1.06562712,1800.8,1800.2,6.659]
[1745592776558,5.85986618,1800.8,1800.2,6.659]
[1745592776760,0.30672712,1800.8,1800.3,0.70194559]
[1745592777055,0.30672712,1800.8,1800.3,0.6464]
[1745592777365,0.30672712,1801.0,1800.3,0.6464]
[1745592777526,6.4451766,1801.0,1800.3,0.6464]
[1745592777726,14.85914559,1800.9,1800.3,0.6464]
[1745592778056,5.86002004,1800.8,1800.2,6.659]
[1745592778422,3.0,1800.6,1800.2,6.659]
[1745592778838,8.86002524,1800.8,1800.2,6.659]
[1745592779037,0.30672712,1800.6,1800.2,6.659]
[1745592779732,0.72476631,1800.6,1800.2,6.659]
[1745592779935,3.41803919,1800.6,1800.2,6.659]
[1745592780146,0.41803919,1800.6,1800.2,6.659]
[1745592780439,8.55391648,1800.6,1800.2,6.659]
[1745592780642,0.85539165,1800.5,1800.2,6.659]
[1745592780865,3.7532,1800.3,1799.1,1.07169024]
[1745592781072,3.7532,1800.3,1799.2,7.3074]
[1745592781073,3.0,1800.0,1799.2,7.3074]
[1745592781283,5.55602891,1799.9,1799.2,7.3074]
[1745592781490,0.85560289,1799.9,1799.2,9.70934]
[1745592781810,1.16233001,1799.9,1799.2,9.70934]
[1745592781984,3.0,1799.7,1799.2,7.3074]
[1745592782159,3.7704,1799.7,1799.2,6.661]
[1745592782356,3.30672712,1799.7,1799.2,6.661]
[1745592782597,0.30672712,1799.7,1799.2,6.661]
[1745592782957,4.07712712,1800.0,1799.2,6.661]
[1745592783155,0.30672712,1800.0,1799.4,0.6464]
[1745592783554,0.30672712,1800.0,1799.6,1.1964]
[1745592783794,0.8326,1800.8,1800.0,0.55]
[1745592783975,0.58590323,1801.0,1800.1,7.36393856]
[1745592784151,5.55110932,1801.5,1800.4,0.55]
[1745592784152,0.8326,1801.5,1800.4,0.55]
[1745592784358,0.42470515,1801.5,1800.8,0.55]
[1745592784553,0.05,1801.9,1801.1,0.55]
[1745592784764,0.05,1801.9,1801.2,0.6464]
[1745592785778,0.45829022,1801.9,1801.2,0.6464]
[1745592785978,0.05,1801.9,1801.2,0.6464]
[1745592788361,0.05,1801.9,1801.0,16.664]
[1745592788362,6.50415449,1801.7,1801.0,16.664]
[1745592788560,19.44842545,1801.6,1800.9,7.3074]
[1745592788765,3.65041545,1801.6,1800.9,6.661]
[1745592788971,0.65041545,1801.6,1800.9,6.661]
[1745592789170,0.7753,1801.8,1801.0,0.6464]
[1745592789399,0.7753,1801.8,1801.0,0.70192382]
[1745592789583,0.4628066,1801.9,1801.0,0.70192382]
[1745592789782,0.05,1801.9,1801.2,0.6464]
[1745592790578,0.05,1801.9,1801.3,0.60550053]
[1745592790798,0.7697,1802.7,1801.8,1.1964]
[1745592790991,0.7673,1803.0,1801.9,6.66]
[1745592791311,0.7673,1803.0,1802.1,0.6464]
[1745592791684,0.42413005,1803.1,1802.2,0.55]
[1745592792000,0.42413005,1803.1,1802.3,0.6464]
[1745592792297,0.42413005,1803.1,1802.4,6.539]
[1745592792498,6.50415449,1803.1,1802.4,6.539]
[1745592792712,0.4183823,1803.5,1802.4,6.539]
[1745592792713,6.50415449,1803.4,1802.5,0.6464]
[1745592793008,6.50415449,1803.4,1802.6,0.05546561]
[1745592793211,6.50415449,1803.4,1802.5,0.6464]
[1745592793212,0.89646286,1803.3,1802.5,0.6464]
[1745592793414,6.50415449,1803.1,1802.5,0.6464]
[1745592793577,7.25865449,1803.1,1802.4,6.539]
[1745592793777,7.25865449,1803.1,1802.1,16.658]
[1745592793778,3.0,1803.0,1802.5,6.537]
[1745592794111,3.0,1802.7,1802.2,0.6464]
[1745592794277,6.50415449,1802.8,1800.1,0.05]
[1745592794278,0.7588,1802.4,1801.1,0.6464]
[1745592794607,0.7588,1802.4,1801.0,0.40715961]
[1745592794608,3.0,1801.5,1801.0,0.40715961]
[1745592795304,9.50415449,1801.9,1800.8,0.70191694]
[1745592795620,9.50415449,1801.9,1801.1,6.537]
[1745592795913,4.17829411,1802.3,1801.2,0.6464]
[1745592796079,0.1241994,1801.8,1801.2,0.6464]
[1745592796285,9.7269055,1802.3,1801.3,6.537]
[1745592796492,0.15524925,1801.8,1801.3,6.537]
[1745592796698,3.0,1802.0,1801.3,6.537]
[1745592796926,0.1552192,1801.8,1801.3,6.537]
[1745592797073,3.0,1801.6,1801.3,6.537]
[1745592799676,6.50415449,1801.7,1801.3,6.537]
[1745592799899,6.45415449,1801.7,1801.3,6.537]
[1745592800469,5.95,1802.0,1801.3,6.537]
[1745592800470,12.45415449,1802.0,1801.3,6.537]
[1745592800675,12.45415449,1802.0,1801.4,0.6464]
[1745592801079,6.50415449,1802.0,1801.4,0.6464]
[1745592802040,3.0,1801.9,1801.4,0.6464]
[1745592802188,6.50415449,1801.7,1801.3,6.537]
[1745592802391,0.42539252,1801.8,1801.1,0.70191426]
[1745592802607,0.42539252,1801.8,1801.2,6.537]
[1745592802608,6.50415449,1801.8,1801.2,6.537]
[1745592803444,6.50415449,1801.8,1801.2,6.59250581]
[1745592803736,1.22419411,1802.3,1801.2,6.537]
[1745592803931,1.22419411,1802.3,1801.3,1.35559895]
[1745592803932,6.50415449,1802.2,1801.3,1.35559895]
[1745592804133,3.0,1802.1,1801.3,1.3001]
[1745592804496,1.22419411,1802.3,1801.3,1.3001]
[1745592804722,6.50415449,1802.0,1801.3,1.3001]
[1745592805334,6.50415449,1802.0,1801.4,0.0554981]
[1745592805534,6.50415449,1802.0,1801.3,1.3001]
[1745592805835,6.50415449,1802.0,1801.4,0.6464]
[1745592806641,6.50415449,1802.0,1801.4,0.70189686]
[1745592806806,6.50415449,1802.0,1801.4,0.6464]
[1745592807010,6.9277486,1802.3,1801.4,0.6464]
[1745592807203,0.3,1802.6,1801.6,0.6464]
[1745592807204,6.80415449,1802.6,1801.6,0.6464]
[1745592807405,6.50415449,1802.6,1801.8,0.6464]
[1745592807615,6.50415449,1802.6,1802.0,0.6464]
[1745592809122,3.0,1802.8,1802.0,0.6464]
[1745592809351,6.96528833,1802.9,1802.0,0.6464]
[1745592809548,0.46113384,1802.9,1802.2,0.6464]
[1745592809708,0.46113384,1802.9,1802.3,6.536]
[1745592810230,0.05,1802.9,1802.4,0.6464]
[1745592810409,0.10804853,1802.8,1802.4,0.70187181]
[1745592810609,0.05,1802.9,1802.4,0.70187181]
[1745592810812,0.10794242,1802.7,1802.4,0.6464]
[1745592811012,0.10804853,1802.8,1802.4,0.6464]
[1745592811214,0.10783631,1802.6,1802.4,0.6464]
[1745592811434,0.05,1802.9,1802.4,0.6464]
[1745592811639,0.10773017,1802.5,1802.4,0.6464]
[1745592811845,0.05,1802.9,1802.4,1.36464]
[1745592812045,0.05,1802.9,1802.4,0.77371044]
[1745592812245,0.05,1802.9,1802.6,0.6464]
[1745592816046,0.05,1802.9,1802.7,0.05545851]
[1745592816246,0.05,1802.9,1802.6,0.6464]
[1745592816247,0.05,1802.9,1802.8,6.534]
[1745592817626,0.05,1802.9,1802.8,7.1804]
[1745592817846,0.05,1802.9,1802.8,23.8244]
[1745592820659,0.4183823,1803.5,1802.8,23.8244]
[1745592820660,0.4183823,1803.5,1802.9,3.75]
[1745592820862,0.5,1804.7,1803.5,3.55]
[1745592821035,0.5,1804.7,1803.7,0.55]
[1745592821234,0.5,1804.7,1804.0,6.50415449]
[1745592821448,0.5,1804.7,1804.1,6.533]
[1745592821766,0.5,1804.7,1804.2,6.533]
[1745592821971,3.8195,1804.6,1804.2,6.533]
[1745592822132,0.38195,1804.5,1803.8,23.35]
[1745592822327,0.8195,1804.6,1803.8,23.35]
[1745592822660,1.24481367,1804.6,1803.8,23.35]
[1745592822966,0.13079767,1804.5,1803.8,23.35]
[1745592823160,3.0,1804.4,1803.8,23.35]
[1745592823335,0.12869541,1804.3,1803.8,23.35]
[1745592823540,0.44156495,1804.3,1803.8,23.35]
[1745592824144,0.7844,1804.2,1803.8,23.35]
[1745592824463,0.12840354,1804.1,1803.8,23.35]
[1745592824979,0.12753096,1804.0,1803.8,23.35]
[1745592825153,0.7622,1804.4,1803.8,23.35]
[1745592825471,0.12784882,1804.3,1803.9,0.05542937]
[1745592825971,1.2622,1804.7,1804.0,0.6464]
[1745592826168,0.12847324,1804.6,1804.0,0.6464]
[1745592826744,0.12847324,1804.6,1803.8,23.35]
[1745592828053,0.12847324,1804.6,1803.9,0.05543265]
[1745592828363,0.12847324,1804.6,1803.8,23.35]
[1745592829178,0.12847324,1804.6,1803.9,0.05542646]
[1745592829501,1.3015,1803.2,1802.1,0.1]
[1745592829643,0.7515,1802.7,1802.1,0.1]
[1745592829951,0.12445742,1802.6,1802.1,7.297]
[1745592830151,0.40772662,1803.0,1802.2,0.05548202]
[1745592830340,0.12011211,1802.9,1802.1,7.297]
[1745592830540,0.7595,1802.7,1802.1,7.297]
[1745592830789,0.11981376,1802.6,1802.1,7.297]
[1745592831144,0.17524038,1802.6,1802.1,0.1]
[1745592831368,0.86370325,1802.6,1802.2,7.197]
[1745592832101,6.50415449,1802.4,1802.2,7.197]
[1745592832258,6.92659718,1802.4,1802.2,7.197]
[1745592832462,0.11935518,1802.3,1802.2,7.197]
[1745592832915,6.92659718,1802.4,1802.2,7.197]
[1745592833203,0.11935518,1802.3,1802.2,7.197]
[1745592833362,0.8316,1802.3,1802.2,7.197]
[1745592833563,5.652515,1802.2,1802.1,0.1]
[1745592833799,0.17467561,1802.2,1802.1,0.1]
[1745592835468,9.6788301,1802.2,1802.1,0.1]
[1745592835668,17.1335079,1802.2,1802.1,0.1]
[1745592835872,17.07808128,1802.2,1802.1,0.1]
[1745592836077,11.52930756,1802.2,1802.1,0.1]
[1745592836886,6.62340348,1802.2,1802.1,0.1]
[1745592838008,6.55958111,1802.5,1802.1,0.1]
[1745592838201,0.7704,1802.6,1802.1,0.1]
[1745592838403,0.7704,1802.6,1802.1,0.15548463]
[1745592838908,6.91717841,1802.8,1802.1,0.15548463]
[1745592839090,0.69171784,1802.7,1802.1,0.15548463]
[1745592839292,6.91717841,1802.8,1802.1,0.15548463]
[1745592839883,6.91717841,1802.8,1802.1,0.1]
[1745592840084,0.05542662,1802.7,1802.1,16.744]
[1745592840292,3.05542662,1802.7,1802.1,16.744]
[1745592840695,0.8138,1802.4,1802.1,16.744]
[1745592840882,1.60102207,1802.4,1802.1,16.744]
[1745592841409,3.0,1802.7,1802.1,16.744]
[1745592841804,6.55958111,1802.6,1802.1,16.744]
[1745592842001,6.50415449,1802.3,1802.1,16.744]
[1745592842210,7.68200297,1802.3,1802.1,16.744]
[1745592842774,3.0,1802.2,1802.1,0.1]
[1745592843100,8.73062792,1802.2,1802.1,0.1]
[1745592844287,4.0682003,1802.2,1802.1,0.1]
[1745592844882,6.50415449,1802.3,1802.1,0.1]
[1745592845083,6.50415449,1802.6,1802.1,0.1]
[1745592845282,7.25855449,1802.9,1802.2,0.05548527]
[1745592845496,7.31398111,1803.2,1802.4,0.7018]
[1745592845781,6.50415449,1802.9,1802.5,7.203]
[1745592846013,0.70584207,1802.8,1802.5,7.203]
[1745592846181,6.50415449,1802.9,1802.5,7.203]
[1745592846394,5.95,1803.0,1802.5,7.203]
[1745592848135,3.05542662,1803.1,1802.5,7.203]
[1745592849535,6.50415449,1802.9,1802.5,7.203]
[1745592849710,3.05542662,1802.8,1802.5,7.203]
[1745592849899,4.01138473,1802.8,1802.5,7.203]
[1745592851532,0.05542662,1803.0,1802.5,7.203]
[1745592852192,6.50415449,1802.9,1802.5,7.203]
[1745592853054,0.05542662,1802.8,1802.6,0.7018]
[1745592853200,0.7711,1803.6,1802.7,0.05545946]
[1745592853396,0.20743908,1803.5,1802.7,0.05545946]
[1745592853640,0.7702,1804.5,1803.0,0.55]
[1745592853850,0.82562662,1804.5,1803.3,0.7018]
[1745592854033,0.15616498,1804.4,1803.5,0.7018]
[1745592854341,0.15616498,1804.4,1803.9,0.7018]
[1745592854758,0.84802662,1804.7,1804.0,0.05542978]
[1745592854957,0.114242,1804.3,1804.1,6.963]
[1745592855158,0.15542662,1804.9,1804.1,7.6648424]
[1745592855324,0.15542662,1804.9,1804.1,6.963]
[1745592855524,0.12633222,1804.8,1804.1,6.963]
[1745592855854,0.05542662,1804.7,1804.1,6.963]
[1745592856021,3.05542662,1804.7,1804.1,6.963]
[1745592856355,0.12606936,1804.6,1804.1,6.963]
[1745592856557,6.55958111,1804.5,1804.1,6.963]
[1745592856906,3.12611309,1804.4,1804.1,6.963]
[1745592857112,0.7517,1804.3,1803.7,6.961]
[1745592857636,3.0,1804.1,1803.7,6.961]
[1745592857944,3.7937,1803.8,1803.3,6.961]
[1745592858152,3.0,1803.5,1802.8,0.7018]
[1745592858448,3.0,1803.5,1802.6,16.641]
[1745592858449,6.50415449,1803.3,1802.7,6.961]
[1745592858746,0.12354623,1803.4,1802.7,6.961]
[1745592858951,0.12073074,1803.2,1802.7,6.961]
[1745592859112,0.12085682,1803.3,1802.7,6.961]
[1745592859312,0.12064467,1803.1,1802.6,16.641]
[1745592859541,0.12075075,1803.2,1802.7,6.961]
[1745592859750,0.12053857,1803.0,1802.7,7.01646471]
[1745592860056,3.0,1803.5,1802.7,7.01646471]
[1745592860257,0.05542662,1803.4,1802.7,7.01646471]
[1745592860544,3.0,1803.5,1802.7,7.01646461]
[1745592860745,6.50415449,1803.6,1802.8,0.70164646]
[1745592861047,6.50415449,1804.0,1802.9,0.7018]
[1745592861256,0.12428754,1803.5,1803.1,0.7018]
[1745592861409,0.7667,1804.1,1803.2,6.961]
[1745592861610,0.12566108,1804.0,1803.3,0.75153764]
[1745592861813,0.7667,1804.4,1803.4,0.7018]
[1745592862062,0.18048644,1804.3,1803.4,0.7018]
[1745592862631,0.12505982,1804.3,1803.5,0.05543476]
[1745592863455,0.12505982,1804.3,1803.4,0.7018]
[1745592863826,0.12505982,1804.3,1803.5,0.05543354]
[1745592864019,0.12505982,1804.3,1803.4,0.7018]
[1745592864548,0.05542662,1804.2,1803.4,0.7018]
[1745592864711,3.05542662,1804.2,1803.4,0.7018]
[1745592864913,3.0,1803.9,1803.2,6.961]
[1745592865145,3.05542662,1803.9,1803.2,6.961]
[1745592865354,0.12473576,1803.8,1803.2,6.961]
[1745592865910,0.12473576,1803.8,1803.4,6.50415449]
[1745592866560,0.05542662,1804.0,1803.4,6.50415449]
[1745592866763,0.12487247,1803.7,1803.4,6.50415449]
[1745592866946,0.82892662,1803.8,1803.4,6.50415449]
[1745592867115,0.12481723,1803.6,1803.3,6.50415449]
[1745592867316,0.05542662,1803.6,1803.3,6.50415449]
[1745592867583,0.1,1804.9,1803.3,7.85066994]
[1745592867865,0.1,1804.9,1804.8,6.50415449]
[1745592868047,0.1,1804.9,1804.8,13.85815449]
[1745592868621,0.1,1804.9,1804.5,6.50415449]
[1745592869077,0.1,1804.9,1804.3,24.40399425]
[1745592869362,0.1,1804.9,1804.4,0.5772]
[1745592870348,0.1,1804.9,1804.3,23.992]
[1745592872418,0.1,1804.9,1804.5,0.5772]
[1745592872726,0.1,1804.9,1804.7,0.5772]
[1745592872941,0.1,1804.9,1804.8,7.4063883]
[1745592873265,0.1,1804.9,1804.8,8.72655883]
[1745592874856,0.1,1804.9,1804.8,7.9282]
[1745592875154,0.1,1804.9,1804.8,7.351]
[1745592876325,0.1,1804.9,1804.8,7.9282]
[1745592876741,0.1,1804.9,1804.8,7.351]
[1745592878939,0.1,1804.9,1804.8,7.9282]
[1745592879170,0.1,1804.9,1804.8,8.72102]
[1745592879573,0.1,1804.9,1804.8,10.29271024]
[1745592879777,0.1,1804.9,1804.8,2.99710127]
[1745592879959,0.4183823,1805.4,1805.0,0.5772]
[1745592880756,0.4183823,1805.4,1805.1,0.05539035]
[1745592881383,0.4183823,1805.4,1805.2,16.623]
[1745592883062,0.4183823,1805.4,1804.7,0.5772]
[1745592883399,0.4183823,1805.4,1804.4,24.8092]
[1745592883572,0.7867,1805.3,1804.4,24.8092]
[1745592883963,0.7867,1805.3,1804.5,0.05540694]
[1745592884300,0.7867,1805.3,1804.4,24.8092]
[1745592884477,0.7867,1805.3,1804.5,0.05539906]
[1745592884682,0.7867,1805.3,1804.5,1.02169024]
[1745592885290,0.7867,1805.3,1804.5,3.60477926]
[1745592885291,0.12400692,1805.2,1804.5,3.60477926]
[1745592885597,0.12400692,1805.2,1804.5,1.07708869]
[1745592885798,0.12400692,1805.2,1804.4,24.8092]
[1745592886495,0.12400692,1805.2,1804.5,0.0554055]
[1745592886879,0.12400692,1805.2,1804.4,24.8092]
[1745592887188,0.12400692,1805.2,1804.5,0.0554055]
[1745592887492,0.12400692,1805.2,1804.5,2.54186605]
[1745592887994,0.4183823,1805.4,1804.5,2.54186605]
[1745592888354,0.15566188,1805.3,1804.5,2.54186605]
[1745592888763,0.15566188,1805.3,1804.5,2.48646055]
[1745592888964,0.15566188,1805.3,1804.6,0.05540027]
[1745592889701,0.4183823,1805.4,1804.5,2.48646055]
[1745592889868,0.7505,1805.3,1804.4,24.8092]
[1745592890195,0.877472,1805.3,1804.4,24.8092]
[1745592892074,0.1,1805.9,1804.7,0.55]
[1745592892270,0.9103,1805.9,1804.8,0.63257771]
[1745592892610,0.9103,1805.9,1805.1,0.55]
[1745592892804,0.1,1805.9,1805.2,7.608]
[1745592892970,0.1,1805.9,1805.3,0.7608]
[1745592893167,0.1,1805.9,1805.4,0.05537705]
[1745592893803,0.4088176,1805.9,1805.4,0.05537705]
[1745592894108,0.4088176,1805.9,1805.5,0.5772]
[1745592894915,0.4088176,1805.9,1805.3,0.5772]
[1745592895257,0.4088176,1805.9,1805.2,7.608]
[1745592895389,0.4088176,1805.9,1805.2,8.3688]
[1745592896013,0.4088176,1805.9,1805.3,0.05537304]
[1745592896607,0.4088176,1805.9,1805.4,0.5772]
[1745592897009,0.4088176,1805.9,1805.5,0.05537073]
[1745592897308,0.4088176,1805.9,1805.4,0.5772]
[1745592897607,0.4088176,1805.9,1805.4,0.63257388]
[1745592898576,0.4088176,1805.9,1805.6,0.5772]
[1745592898835,0.4088176,1805.9,1805.7,0.05535966]
[1745592898997,0.4088176,1805.9,1805.8,8.1832]
[1745592899181,0.4088176,1805.9,1805.8,9.00705597]
[1745592900294,0.4088176,1805.9,1805.8,8.1832]
[1745592902615,0.4088176,1805.9,1805.8,8.7332]
[1745592903040,0.4088176,1805.9,1805.8,8.78855181]
[1745592903340,0.4088176,1805.9,1805.8,9.19378097]
[1745592904058,0.005,1808.0,1806.2,0.75]
[1745592904216,0.005,1808.0,1807.3,0.55]
[1745592904405,0.005,1808.0,1807.7,0.75]
[1745592904742,0.18408318,1808.6,1807.9,0.55]
[1745592904943,0.18408318,1808.6,1808.3,0.1684]
[1745592905114,0.18408318,1808.6,1808.3,16.72308]
[1745592905307,0.18408318,1808.6,1808.4,5.222308]
[1745592905616,0.1,1809.9,1808.6,0.55]
[1745592905951,0.1,1809.9,1808.8,0.55]
[1745592906305,0.1,1809.9,1808.9,0.05523353]
[1745592906650,0.1,1809.9,1809.1,0.55]
[1745592906954,0.1,1809.9,1809.2,7.7382449]
[1745592907115,0.1,1809.9,1809.2,7.683]
[1745592907308,0.1,1809.9,1809.3,0.55]
[1745592907528,0.1,1809.9,1809.2,7.683]
[1745592908011,0.7764,1809.8,1809.2,7.683]
[1745592908315,1.82865542,1810.2,1809.6,0.1132]
[1745592908718,0.7552,1810.1,1809.1,0.1132]
[1745592909349,0.7552,1810.1,1809.2,0.60525476]
[1745592909953,1.82865542,1810.2,1809.4,3.55]
[1745592910109,1.82865542,1810.2,1809.6,0.55]
[1745592910343,1.82865542,1810.2,1809.7,0.55]
[1745592910545,1.82865542,1810.2,1809.9,0.55]
[1745592910715,0.5,1810.4,1810.1,0.55]
[1745592910909,0.5,1810.4,1810.3,0.55]
[1745592911111,0.7552,1811.6,1810.4,0.1132]
[1745592911312,0.7552,1811.6,1810.5,16.64821115]
[1745592911655,0.7552,1811.1,1810.3,7.675]
[1745592911863,0.7552,1811.1,1810.4,0.55]
[1745592912067,0.7577,1811.5,1810.4,0.60521658]
[1745592912387,0.7577,1811.5,1810.3,7.675]
[1745592912388,0.7577,1811.5,1810.5,0.05520888]
[1745592912654,3.7577,1811.5,1810.6,0.05521064]
[1745592912839,0.7577,1811.5,1810.4,0.05521662]
[1745592913015,0.7882,1811.1,1810.3,7.675]
[1745592913215,0.7882,1811.1,1809.8,24.512]
[1745592913515,0.7882,1811.1,1809.9,0.05523007]
[1745592913947,0.7784,1811.5,1810.0,0.1132]
[1745592914259,0.7784,1811.5,1810.2,0.55]
[1745592914572,0.7784,1811.8,1810.3,0.1132]
[1745592914708,0.7784,1811.8,1810.5,0.55]
[1745592914915,0.7789,1812.7,1810.9,0.55]
[1745592915139,0.7789,1812.7,1811.3,0.55]
[1745592915456,0.7789,1812.8,1811.4,0.05516982]
[1745592915655,0.7789,1812.3,1811.2,0.1132]
[1745592915826,0.8143,1811.9,1810.9,0.25201384]
[1745592916159,3.8143,1811.0,1809.9,0.1132]
[1745592916362,6.33765062,1810.5,1809.4,8.171]
[1745592916562,0.8143,1810.5,1809.4,8.22624283]
[1745592917138,3.0,1810.4,1809.4,8.22624283]
[1745592917330,3.0,1810.4,1809.3,0.1132]
[1745592917331,5.52386303,1810.4,1809.5,8.168]
[1745592917644,3.0,1810.3,1809.5,8.168]
[1745592917906,6.28264502,1810.0,1809.0,8.168]
[1745592918030,5.52608872,1809.6,1808.5,8.168]
[1745592918362,0.7577,1809.4,1808.6,0.05527081]
[1745592918544,0.7577,1809.4,1808.5,8.168]
[1745592918751,3.7577,1809.4,1808.5,8.168]
[1745592918949,0.37577,1809.3,1808.5,8.168]
[1745592919434,0.7577,1809.4,1808.6,0.05528115]
[1745592919634,5.52717685,1809.3,1808.5,8.168]
[1745592919940,8.52843877,1808.9,1807.9,8.168]
[1745592920246,0.7801,1808.7,1808.1,0.15529603]
[1745592920560,0.7801,1808.7,1808.1,0.1]
[1745592921059,4.15811,1808.7,1808.1,0.1]
[1745592921243,0.7801,1808.7,1808.1,0.1]
[1745592921444,0.7618,1809.3,1808.1,0.15528397]
[1745592921754,0.7618,1809.3,1808.2,0.6632]
[1745592921958,0.7618,1809.3,1808.3,0.05527099]
[1745592922266,0.5,1810.2,1808.4,0.05527284]
[1745592922559,5.52511911,1810.0,1808.5,8.719]
[1745592922765,0.7618,1810.1,1808.7,0.55]
[1745592922923,0.7618,1810.1,1809.1,0.55]
[1745592923271,13.69273487,1810.7,1809.3,0.55]
[1745592923272,0.8241,1810.7,1809.3,0.55]
[1745592923449,0.8241,1810.7,1809.5,0.55]
[1745592923760,5.52328627,1810.6,1809.5,0.05523723]
[1745592923961,5.52436469,1810.2,1809.4,24.753]
[1745592924138,3.0,1810.1,1809.4,24.753]
[1745592924335,3.0,1810.3,1809.5,0.05525205]
[1745592924535,3.0,1810.3,1809.4,24.753]
[1745592924536,0.41395093,1810.3,1809.4,8.17]
[1745592924864,8.52410205,1810.3,1809.5,0.05525539]
[1745592925024,3.0,1810.1,1809.4,8.17]
[1745592925408,3.0,1810.0,1809.4,8.17]
[1745592925660,0.85241021,1810.2,1809.4,8.17]
[1745592925845,3.0,1809.9,1809.4,8.17]
[1745592926046,3.0,1809.9,1809.0,0.05525446]
[1745592926047,8.52521226,1809.9,1809.0,0.05525446]
[1745592926248,0.40868533,1810.3,1808.9,8.22526238]
[1745592926463,3.9912,1810.4,1808.9,8.22526238]
[1745592926464,5.52426947,1810.2,1809.1,0.05526238]
[1745592926623,6.3151027,1810.4,1809.1,0.05526238]
[1745592926827,9.15561193,1810.3,1809.0,0.05525099]
[1745592927168,8.52564277,1809.8,1808.9,8.17]
[1745592927375,3.0,1809.8,1808.9,8.17]
[1745592927520,8.52487137,1810.0,1808.9,8.17]
[1745592927726,3.0,1809.5,1808.9,8.17]
[1745592928033,4.62058714,1809.9,1809.0,0.05527032]
[1745592928231,3.0,1809.7,1808.9,8.22526038]
[1745592928544,3.7681,1809.9,1808.9,8.22526038]
[1745592928748,3.0,1809.6,1808.9,8.17]
[1745592928959,0.37681,1809.8,1808.9,8.17]
[1745592929173,0.37681,1809.8,1809.0,0.05527274]
[1745592929376,3.0,1809.8,1808.9,8.17]
[1745592929893,3.0,1809.7,1809.0,0.0552663]
[1745592930102,3.7681,1809.9,1809.0,0.0552663]
[1745592930248,0.7681,1809.9,1809.0,0.0552663]
[1745592931148,0.7681,1809.9,1809.0,0.1684663]
[1745592931344,0.7627,1810.3,1809.1,0.55]
[1745592931563,0.7627,1810.3,1809.1,0.60524386]
[1745592931784,0.7628,1810.7,1809.2,0.1132]
[1745592932066,0.7628,1810.7,1809.3,0.60523413]
[1745592932067,4.05130465,1810.7,1809.3,0.60523413]
[1745592932267,1.05130465,1810.7,1809.3,0.60523413]
[1745592932487,0.7628,1810.7,1809.5,0.55]
[1745592932793,0.40537627,1810.9,1809.7,0.55]
[1745592932954,0.40537627,1810.9,1809.0,4.24631077]
[1745592932955,0.8073,1810.6,1809.0,0.83384663]
[1745592933153,3.05523572,1810.5,1809.1,0.05526555]
[1745592933382,0.8073,1810.6,1809.1,16.63826555]
[1745592933383,3.86253572,1810.6,1809.1,16.63826555]
[1745592933583,0.86253572,1810.6,1809.2,0.55]
[1745592933795,0.8073,1810.6,1809.4,0.1132]
[1745592933981,0.86253572,1810.6,1809.5,8.17]
[1745592934184,0.86253572,1810.6,1809.5,0.82832]
[1745592934385,3.05523572,1810.5,1809.6,8.17]
[1745592934559,5.52375985,1810.4,1809.6,8.17]
[1745592934909,5.52416414,1810.3,1809.6,8.17]
[1745592935067,8.52442431,1810.2,1809.6,8.17]
[1745592935260,0.8073,1810.6,1809.7,0.05525249]
[1745592935461,3.0,1810.4,1809.6,8.17]
[1745592935662,0.42162448,1810.9,1809.7,0.05523995]
[1745592935961,0.7965,1811.0,1809.7,0.05523995]
[1745592935962,3.7965,1811.0,1809.7,0.60523696]
[1745592936289,5.52163851,1811.1,1809.7,0.60523696]
[1745592936290,0.28852782,1811.2,1809.9,0.55]
[1745592936464,0.28852782,1811.2,1810.2,0.1132]
[1745592936671,0.7965,1811.4,1810.3,8.22421795]
[1745592936870,0.7965,1811.4,1810.4,0.8224218]
[1745592936871,0.05523572,1811.3,1810.4,0.8224218]
[1745592937076,3.0,1811.2,1810.4,0.8224218]
[1745592937306,5.52212834,1810.9,1810.3,8.169]
[1745592937472,3.0,1810.7,1809.9,0.1132]
[1745592937681,5.57617524,1811.3,1810.0,0.05523783]
[1745592937992,0.47026596,1811.3,1810.0,0.05523783]
[1745592938197,0.47026596,1811.3,1809.9,0.1132]
[1745592938198,3.0,1810.6,1809.9,0.1132]
[1745592938418,0.3,1810.5,1809.6,8.169]
[1745592938576,0.7965,1811.0,1809.7,0.05524177]
[1745592938911,5.52121414,1811.2,1809.8,0.1132]
[1745592939121,0.8248,1811.4,1809.8,0.1132]
[1745592939122,0.05523572,1811.1,1809.9,0.05522834]
[1745592939421,0.88003572,1811.4,1810.0,0.55]
[1745592939709,0.88003572,1811.4,1810.1,0.05521826]
[1745592939914,0.88003572,1811.4,1810.2,8.168]
[1745592940073,3.0,1811.2,1810.3,0.8168]
[1745592940471,0.8006,1811.8,1810.4,0.16842529]
[1745592940601,0.41813737,1811.5,1810.4,0.1132]
[1745592940772,0.05523572,1811.4,1810.4,0.1132]
[1745592940977,3.05523572,1811.5,1810.4,0.1132]
[1745592941209,3.0,1811.3,1810.4,0.0632]
[1745592941416,0.30552357,1811.4,1810.4,0.0632]
[1745592941582,3.30552357,1811.4,1810.4,0.0632]
[1745592941782,3.30552357,1811.4,1810.5,0.05521918]